bitfinex-derivatives/quotes_ETHF0:USTF0_20251126
["timestamp","ask_amount","ask_price","bid_price","bid_amount"]
[1764140159781,0.0105073,2948.6,2948.5,0.74005059]
[1764140167196,0.5008073,2948.6,2948.5,0.74005059]
[1764140167589,0.00239238,2949.1,2949.0,0.7443]
[1764140167992,0.77409297,2949.1,2949.0,0.7443]
[1764140168593,1.26439297,2949.1,2949.0,0.7443]
[1764140168794,1.26439297,2949.1,2948.5,2.11377096]
[1764140168995,0.49269238,2949.1,2948.5,2.11377096]
[1764140169598,0.49269238,2949.1,2949.0,0.4629]
[1764140169799,1.26432646,2949.1,2949.0,0.7443]
[1764140171298,0.2871,2949.0,2948.5,2.11377096]
[1764140172302,0.49269238,2949.1,2949.0,0.4629]
[1764140172500,1.26442679,2949.1,2949.0,0.7443]
[1764140173695,1.26442679,2949.1,2949.0,0.4629]
[1764140173904,0.4903,2948.6,2948.5,0.28345059]
[1764140174402,1.26209155,2948.6,2948.5,0.46575059]
[1764140174705,0.4903,2948.6,2948.5,0.74715059]
[1764140175499,1.26220095,2948.6,2948.5,0.74715059]
[1764140176794,1.26220095,2948.6,2948.5,0.46575059]
[1764140176998,1.26220095,2948.6,2948.5,0.00285059]
[1764140177499,1.26220095,2948.6,2948.5,0.46575059]
[1764140180101,1.26220095,2948.6,2948.5,0.74715059]
[1764140182611,0.77190095,2948.6,2948.5,0.74715059]
[1764140182811,0.4903,2948.8,2948.7,0.4629]
[1764140183011,1.26267391,2948.8,2948.7,0.4629]
[1764140183212,0.4903,2948.6,2948.5,0.00285059]
[1764140183507,0.4903,2947.9,2947.8,2.29322037]
[1764140183702,1.13491976,2947.9,2947.8,0.4629]
[1764140183902,0.64461976,2948.1,2947.8,0.4629]
[1764140184111,1.13491976,2948.4,2948.3,0.4629]
[1764140184306,1.90693569,2948.4,2948.3,0.4629]
[1764140184506,1.90693569,2948.4,2948.3,0.46651192]
[1764140186810,1.26231593,2948.4,2948.3,0.46651192]
[1764140189010,1.26231593,2948.4,2948.3,0.00361192]
[1764140190316,1.90693569,2948.4,2948.3,0.00361192]
[1764140194323,1.90693569,2948.4,2948.3,0.46651192]
[1764140194719,1.26231593,2948.4,2948.3,0.46651192]
[1764140195420,0.4903,2948.4,2948.3,0.46651192]
[1764140198126,0.64461976,2948.7,2948.3,0.46651192]
[1764140198327,1.26503674,2948.6,2948.5,0.4531]
[1764140198726,1.26503674,2948.6,2948.5,0.7229]
[1764140199621,1.26503674,2948.6,2948.5,0.4531]
[1764140200725,0.493,2948.4,2948.3,0.45671192]
[1764140200925,1.13761976,2948.4,2948.3,0.45671192]
[1764140203331,0.64461976,2948.7,2948.3,0.45671192]
[1764140203528,1.26677644,2948.6,2948.5,0.4531]
[1764140205028,0.493,2948.4,2948.3,0.00361192]
[1764140205233,1.26684947,2948.4,2948.3,0.45671192]
[1764140205533,0.493,2948.4,2948.3,0.45671192]
[1764140205732,0.493,2948.7,2948.6,0.4531]
[1764140206032,1.26682674,2948.7,2948.6,0.4531]
[1764140207928,1.82490349,2949.2,2948.6,0.4531]
[1764140207929,1.21973338,2949.5,2949.2,0.4531]
[1764140208233,0.64461976,2949.8,2949.2,0.4531]
[1764140208933,0.0079285,2949.3,2949.2,0.4531]
[1764140209142,0.64461976,2949.8,2949.2,0.4531]
[1764140209639,2.46952325,2950.2,2949.7,0.4531]
[1764140209937,0.493,2949.6,2949.5,0.7229]
[1764140210330,0.64461976,2949.9,2949.5,0.7229]
[1764140210928,1.13761976,2949.7,2949.6,0.4531]
[1764140211337,0.493,2949.7,2949.6,0.4531]
[1764140213031,0.493,2949.6,2949.5,0.2698]
[1764140213638,0.493,2949.6,2949.5,0.7229]
[1764140215038,0.493,2949.4,2949.3,0.45818551]
[1764140216839,1.13761976,2949.4,2949.3,0.00508551]
[1764140217732,1.13761976,2949.4,2949.3,0.45818551]
[1764140218534,0.493,2949.4,2949.3,0.45818551]
[1764140218737,1.13761976,2949.4,2949.3,0.00508551]
[1764140220940,1.55626225,2949.9,2949.3,0.45818551]
[1764140221145,0.64461976,2949.9,2949.3,0.45818551]
[1764140221334,0.274,2950.0,2949.3,0.45818551]
[1764140221335,0.493,2949.4,2949.3,0.45818551]
[1764140222638,0.64461976,2949.7,2949.3,0.45818551]
[1764140222944,1.12491976,2949.7,2949.6,0.4641]
[1764140224655,0.4803,2949.6,2949.5,0.734]
[1764140226046,0.00508551,2950.1,2949.6,0.4641]
[1764140226238,0.64970527,2950.1,2949.6,0.4641]
[1764140227750,1.12311976,2949.8,2949.7,0.4574]
[1764140227940,0.4785,2949.6,2949.5,0.7273]
[1764140228435,1.12311976,2949.6,2949.5,0.7273]
[1764140230044,0.4785,2949.6,2949.5,0.7273]
[1764140230351,1.12311976,2949.6,2949.5,0.7273]
[1764140231450,0.916728,2950.1,2949.7,0.4574]
[1764140231752,1.12311976,2949.9,2949.8,0.4574]
[1764140231951,0.916728,2950.1,2949.8,0.4574]
[1764140232140,0.48358551,2950.1,2950.0,0.738]
[1764140233849,1.12820527,2950.1,2950.0,0.738]
[1764140235149,1.12820527,2950.1,2949.5,0.2699]
[1764140235351,1.12311976,2949.8,2949.7,0.4574]
[1764140235946,1.12311976,2950.0,2949.9,0.4574]
[1764140236543,0.4785,2950.0,2949.9,0.4574]
[1764140236744,1.12311976,2950.0,2949.9,0.4574]
[1764140237652,2.03476225,2950.0,2949.9,0.4574]
[1764140238050,1.12311976,2950.0,2949.9,0.4574]
[1764140238249,2.03476225,2950.0,2949.9,0.4574]
[1764140238947,1.39014249,2950.0,2949.9,0.4574]
[1764140239156,0.4785,2950.0,2949.9,0.4574]
[1764140240163,0.4785,2949.7,2949.6,1.67511312]
[1764140240459,1.12311976,2949.7,2949.5,1.48761312]
[1764140240654,0.4785,2949.5,2949.4,1.21771312]
[1764140240961,1.12311976,2949.5,2949.4,0.4574]
[1764140242659,0.4785,2949.5,2949.4,0.4574]
[1764140244765,0.4785,2949.4,2949.3,1.22279863]
[1764140244960,0.4785,2949.4,2949.3,1.68019863]
[1764140246266,0.4785,2949.4,2949.3,0.46248551]
[1764140247564,0.4785,2949.4,2949.3,0.00508551]
[1764140248367,0.4785,2949.4,2949.3,0.46248551]
[1764140249358,1.53980076,2949.7,2949.3,0.46248551]
[1764140250870,0.4785,2949.4,2949.3,0.46248551]
[1764140255470,0.4785,2949.4,2949.3,1.68019863]
[1764140256074,0.4785,2949.4,2949.3,0.46248551]
[1764140256573,1.53980076,2949.8,2949.3,0.46248551]
[1764140258278,0.4741,2949.4,2949.3,0.46248551]
[1764140261686,0.4741,2949.4,2949.3,0.00508551]
[1764140261978,1.38574249,2949.4,2949.3,1e-08]
[1764140266776,1.55534249,2949.4,2949.3,1e-08]
[1764140266982,0.4741,2948.7,2948.6,1.71281312]
[1764140267375,0.4741,2948.6,2948.5,1.48751312]
[1764140267677,0.4741,2948.6,2948.5,0.7649]
[1764140268978,1.54258552,2948.9,2948.3,0.00869743]
[1764140268979,0.4741,2948.4,2948.3,0.50379743]
[1764140269184,0.00173445,2948.4,2948.3,0.50379743]
[1764140271176,0.47583445,2948.4,2948.3,0.50379743]
[1764140271873,0.00173445,2948.4,2948.3,0.50379743]
[1764140274883,0.47583445,2948.4,2948.3,0.50379743]
[1764140275984,0.47583445,2948.4,2948.3,0.00869743]
[1764140281583,0.00173445,2948.4,2948.3,0.50379743]
[1764140281991,3.445e-05,2948.4,2948.3,0.50379743]
[1764140283185,3.445e-05,2948.4,2948.3,1.72151055]
[1764140284895,3.445e-05,2948.4,2948.3,5.55751055]
[1764140285096,3.445e-05,2948.4,2948.3,4.33979743]
[1764140285794,3.445e-05,2948.4,2948.3,6.1678215]
[1764140288494,3.445e-05,2948.4,2948.3,4.33979743]
[1764140288995,3.445e-05,2948.4,2948.3,5.55651363]
[1764140289293,0.47853445,2948.4,2948.3,0.50059743]
[1764140289498,3.445e-05,2948.4,2948.3,0.50059743]
[1764140290694,3.445e-05,2948.4,2948.3,1.8367215]
[1764140291392,3.445e-05,2948.4,2948.3,0.00869743]
[1764140295001,3.445e-05,2948.4,2948.3,3.84469743]
[1764140316833,1.12659672,2948.4,2948.3,4.29739743]
[1764140317127,1.12659672,2948.4,2948.3,3.84469743]
[1764140317327,1.12659672,2948.4,2948.3,5.51758932]
[1764140317531,1.12659672,2948.4,2948.3,4.29739743]
[1764140318019,3.445e-05,2948.4,2948.3,3.84469743]
[1764140318220,3.445e-05,2948.4,2948.3,5.67511042]
[1764140318620,3.445e-05,2948.4,2948.3,1.83911042]
[1764140319522,0.48203445,2948.4,2948.3,2.29181042]
[1764140320430,3.445e-05,2948.4,2948.3,1.83911042]
[1764140322428,0.48203445,2948.4,2948.3,2.29181042]
[1764140322931,3.445e-05,2948.4,2948.3,1.83911042]
[1764140323232,3.445e-05,2948.4,2948.3,0.00869743]
[1764140326533,0.48203445,2948.4,2948.3,0.46139743]
[1764140328037,0.48203445,2948.4,2948.3,0.00869743]
[1764140328541,0.48203445,2948.4,2947.5,0.2862]
[1764140328542,0.16968,2948.0,2947.5,0.2862]
[1764140328735,0.64456227,2947.6,2947.5,0.7389]
[1764140329030,0.91442725,2948.1,2948.0,0.7389]
[1764140329332,0.91442725,2948.2,2948.0,0.7389]
[1764140329528,0.91442725,2948.1,2948.0,0.74225402]
[1764140329730,2.37518507,2948.1,2948.0,0.74225402]
[1764140330037,2.37518507,2948.1,2947.8,0.00508551]
[1764140330235,0.64456227,2947.9,2947.8,0.00508551]
[1764140330535,0.64456227,2947.9,2947.0,0.92216227]
[1764140330536,1.8637986,2947.9,2947.0,0.2862]
[1764140330741,0.64456227,2947.1,2947.0,0.2862]
[1764140331033,0.64456227,2947.1,2947.0,0.28945011]
[1764140331229,0.64456227,2947.4,2947.0,0.74215011]
[1764140331427,0.81457062,2947.3,2947.0,0.74215011]
[1764140331632,0.64456227,2947.4,2947.0,0.74215011]
[1764140331937,0.81457062,2947.3,2947.0,0.74215011]
[1764140332133,0.64456227,2947.4,2947.0,0.74215011]
[1764140332338,0.81390412,2947.3,2947.0,0.74215011]
[1764140332534,0.64456227,2947.4,2947.0,0.74215011]
[1764140332734,0.81390412,2947.3,2947.2,0.4527]
[1764140333434,0.64456227,2947.4,2947.2,0.4527]
[1764140334039,0.64456227,2947.4,2947.3,0.4527]
[1764140334239,0.64456227,2947.4,2947.0,0.28945011]
[1764140334439,0.64456227,2947.1,2947.0,0.28945011]
[1764140334628,0.64456227,2947.1,2947.0,0.74215011]
[1764140335839,0.81426227,2947.7,2947.5,0.2862]
[1764140336040,0.81266406,2947.6,2947.5,0.7389]
[1764140336341,0.81266406,2947.6,2947.5,0.2862]
[1764140336939,0.81266406,2947.6,2947.5,0.7389]
[1764140337136,0.81426227,2947.7,2947.6,0.4527]
[1764140337336,0.1697,2947.7,2947.6,0.4527]
[1764140337742,0.64456227,2947.8,2947.7,0.4527]
[1764140337940,0.64456227,2948.0,2947.9,0.4527]
[1764140338240,1.45652015,2948.0,2947.5,0.2862]
[1764140338542,0.64456227,2948.0,2947.5,0.2862]
[1764140338743,0.64456227,2947.8,2947.5,0.2862]
[1764140339045,0.91172671,2948.2,2947.5,0.2862]
[1764140339046,0.64456227,2947.6,2947.5,0.2862]
[1764140339440,0.64456227,2947.6,2947.5,0.7389]
[1764140339844,0.64456227,2947.9,2947.5,0.7389]
[1764140340946,0.64456227,2948.1,2948.0,0.7389]
[1764140341139,1.45627672,2948.1,2947.5,0.7389]
[1764140341340,0.64456227,2947.6,2947.5,0.7389]
[1764140341645,0.64456227,2948.1,2948.0,0.2862]
[1764140341842,1.45625405,2948.1,2948.0,0.2862]
[1764140344537,2.27049632,2948.1,2947.5,0.7355]
[1764140344734,0.64456227,2947.6,2947.5,0.7355]
[1764140345350,0.64456227,2947.8,2947.5,0.7355]
[1764140345650,0.64456227,2947.8,2947.7,0.4493]
[1764140346047,0.64456227,2947.8,2947.5,0.2862]
[1764140346650,0.64456227,2947.6,2947.5,0.2862]
[1764140347053,0.64456227,2947.6,2947.5,0.763]
[1764140349255,0.00508551,2948.3,2948.2,0.4768]
[1764140349552,0.4948,2948.1,2948.0,0.2784]
[1764140349753,1.13936227,2948.1,2947.5,0.2862]
[1764140349949,1.13936227,2947.8,2947.7,0.4768]
[1764140350346,0.4948,2947.6,2947.5,0.2862]
[1764140350641,0.4948,2947.6,2947.0,0.28945011]
[1764140350841,0.64456227,2947.5,2947.0,0.28945011]
[1764140351956,0.64456227,2947.5,2947.4,0.4768]
[1764140351957,1.13936227,2947.5,2947.4,0.4768]
[1764140353358,1.13936227,2947.5,2947.0,0.28945011]
[1764140353359,0.4948,2947.1,2947.0,0.76625011]
[1764140353649,0.64456227,2947.5,2947.0,0.76625011]
[1764140354452,1.13936227,2947.3,2947.2,0.4768]
[1764140356456,1.13936227,2947.5,2947.4,0.4768]
[1764140356754,1.95398884,2947.5,2947.4,0.4768]
[1764140357150,1.95398884,2947.5,2947.0,0.28945011]
[1764140357348,0.81462657,2947.4,2947.0,0.28945011]
[1764140357854,1.30942657,2947.4,2947.3,0.4768]
[1764140360055,0.81462657,2947.4,2947.3,0.4768]
[1764140360265,2.37057056,2947.5,2947.4,0.4768]
[1764140360552,2.86530971,2947.5,2947.4,0.4768]
[1764140364249,1.59763665,2947.5,2947.4,0.4768]
[1764140364453,1.59763665,2947.5,2947.0,0.45919011]
[1764140364454,0.4948,2947.6,2947.5,0.7552]
[1764140365057,0.4948,2947.6,2947.5,0.2784]
[1764140368257,0.66448,2948.0,2947.9,0.4768]
[1764140371464,1.29333741,2948.0,2947.5,0.2784]
[1764140371664,0.4948,2947.6,2947.5,0.7552]
[1764140371967,0.4948,2947.6,2947.5,0.2784]
[1764140372958,0.4948,2947.6,2947.1,1.83008337]
[1764140373162,0.4948,2947.6,2947.5,0.7552]
[1764140375650,0.4763,2947.9,2947.8,0.4651]
[1764140375860,0.48138551,2948.3,2948.2,0.4651]
[1764140376359,0.00508551,2948.3,2948.2,0.4651]
[1764140376566,0.80134513,2948.3,2948.2,0.4651]
[1764140378264,0.00508551,2948.3,2948.2,0.4651]
[1764140379966,3.445e-05,2948.4,2948.0,0.2874]
[1764140385969,1.10515741,2948.1,2947.5,0.2784]
[1764140388469,1.10515741,2948.1,2948.0,0.2874]
[1764140390468,1.10515741,2948.1,2947.5,0.2784]
[1764140391769,0.4763,2947.6,2947.5,0.2784]
[1764140391967,0.4763,2947.6,2947.5,0.7435]
[1764140392475,1.10515741,2947.8,2947.7,0.4651]
[1764140393471,0.4763,2947.6,2947.5,0.2784]
[1764140394179,0.4763,2947.3,2947.2,3.4221]
[1764140394773,0.4763,2947.3,2947.2,0.4651]
[1764140395076,0.62885741,2947.4,2947.0,0.75455011]
[1764140395077,0.4763,2947.1,2947.0,0.75455011]
[1764140396974,0.62885741,2947.4,2947.0,0.75455011]
[1764140399777,0.4763,2947.1,2947.0,0.75455011]
[1764140400581,1.10515741,2947.4,2947.3,0.4651]
[1764140400974,1.10515741,2947.4,2947.0,0.28945011]
[1764140401178,1.10515741,2947.1,2947.0,0.28945011]
[1764140401484,1.10515741,2947.1,2947.0,0.00325011]
[1764140402270,0.62885741,2947.4,2947.0,0.73465011]
[1764140402473,1.09235741,2947.4,2947.3,0.4598]
[1764140402683,1.88641541,2947.4,2947.3,0.4598]
[1764140403478,1.09235741,2947.4,2947.3,0.4598]
[1764140404484,0.4635,2947.1,2947.0,0.73465011]
[1764140404888,0.4635,2947.1,2947.0,0.27485011]
[1764140405086,1.09235741,2947.1,2947.0,0.27485011]
[1764140406986,1.09235741,2947.1,2947.0,0.00325011]
[1764140407184,0.79954,2947.0,2946.0,2.11748337]
[1764140407485,0.79260179,2946.9,2946.8,0.4822]
[1764140407788,1.26070179,2946.9,2946.8,0.4822]
[1764140408185,0.4681,2946.6,2946.0,0.2874]
[1764140408389,0.79260179,2946.9,2946.2,0.4822]
[1764140408390,1.09695741,2946.3,2946.2,0.4822]
[1764140408589,1.10093058,2946.3,2946.2,0.4822]
[1764140408887,0.00397317,2946.3,2946.2,0.4822]
[1764140410791,0.47207317,2946.3,2946.2,0.4822]
[1764140415598,0.00397317,2946.3,2946.2,0.4822]
[1764140417697,0.47318551,2947.1,2947.0,0.7533]
[1764140417897,1.26556429,2947.1,2947.0,0.7533]
[1764140418605,0.47681317,2947.1,2947.0,0.7533]
[1764140422802,1.2705561,2947.1,2947.0,0.7533]
[1764140423410,1.2705561,2947.1,2947.0,0.2711]
[1764140423607,1.2705561,2947.1,2946.5,0.2711]
[1764140423911,0.62885741,2946.9,2946.5,0.2711]
[1764140424099,1.09695741,2946.9,2946.8,0.4822]
[1764140424298,1.09695741,2946.9,2946.5,0.2711]
[1764140424504,0.64547704,2946.6,2946.5,0.7533]
[1764140425302,1.11357704,2946.6,2946.5,0.7533]
[1764140425504,0.64547704,2946.7,2946.5,0.7533]
[1764140425710,0.64547704,2946.9,2946.8,0.4822]
[1764140426512,1.44000729,2946.9,2946.8,0.4822]
[1764140428117,1.90810729,2946.9,2946.8,0.4822]
[1764140430017,0.79453025,2946.9,2946.8,0.4822]
[1764140430215,0.65419021,2947.1,2947.0,0.7533]
[1764140430609,0.80433127,2947.1,2947.0,0.7533]
[1764140433316,0.00871317,2947.1,2947.0,0.7533]
[1764140435613,0.9105335,2947.6,2947.0,1.39877704]
[1764140435814,2.02251054,2947.8,2947.7,0.4802]
[1764140436022,2.81895523,2947.8,2947.7,0.4802]
[1764140436419,1.90842173,2947.8,2947.7,0.4802]
[1764140436822,0.79900887,2947.8,2947.7,0.4802]
[1764140437018,1.26550887,2947.8,2947.7,0.4802]
[1764140437223,0.4665,2947.6,2947.5,0.7519]
[1764140437520,1.11197704,2947.6,2947.5,0.7519]
[1764140438720,1.90767233,2947.6,2947.0,0.2711]
[1764140438921,1.11197704,2947.1,2947.0,0.7513]
[1764140439625,1.11197704,2947.3,2947.2,0.4802]
[1764140443723,0.46906418,2947.8,2947.5,0.2717]
[1764140444021,1.11197704,2947.6,2947.0,0.2711]
[1764140444232,0.4665,2947.1,2947.0,0.7513]
[1764140444725,1.11197704,2947.4,2947.3,0.4802]
[1764140445828,0.64547704,2947.4,2947.3,0.4802]
[1764140446127,1.11197704,2947.7,2947.6,0.4802]
[1764140446427,1.90742225,2947.7,2947.6,0.4802]
[1764140446630,1.26194521,2947.7,2947.6,0.4802]
[1764140447329,0.00256418,2947.8,2947.7,0.4802]
[1764140447622,0.79826718,2947.8,2947.7,0.4802]
[1764140447827,0.00256418,2947.8,2947.7,0.4802]
[1764140448727,1e-08,2948.0,2947.9,0.4802]
[1764140450818,1.11197705,2948.0,2947.9,0.4802]
[1764140451028,1e-08,2948.0,2947.7,0.00508551]
[1764140451722,1.11197704,2947.9,2947.8,0.4802]
[1764140451927,0.4665,2947.8,2947.7,0.00508551]
[1764140452828,0.4665,2947.8,2947.7,0.48528551]
[1764140454526,0.64547704,2947.9,2947.7,0.48528551]
[1764140454834,1.11197704,2947.9,2947.8,0.4802]
[1764140455426,0.4665,2947.8,2947.7,0.00508551]
[1764140456426,1.26136021,2947.8,2947.7,0.00508551]
[1764140457228,1.43105021,2947.8,2947.7,0.00508551]
[1764140457836,0.4665,2947.1,2947.0,0.7513]
[1764140461036,0.91161615,2947.6,2947.0,0.7513]
[1764140461037,1.11197704,2947.4,2947.3,0.4802]
[1764140461238,1.90739765,2947.4,2947.3,0.4802]
[1764140464040,1.44089765,2947.4,2947.3,0.4802]
[1764140466733,0.79542061,2947.4,2947.3,0.4802]
[1764140467137,1.24692061,2947.4,2947.3,0.4802]
[1764140468640,0.79542061,2947.4,2947.3,0.4802]
[1764140470131,0.64547704,2947.7,2947.3,0.4802]
[1764140470326,1.27785693,2947.6,2947.5,0.2874]
[1764140470530,1.27785693,2947.6,2947.5,0.7367]
[1764140472438,1.27785693,2947.6,2947.2,3.836]
[1764140472439,0.4807,2947.3,2947.2,4.2853]
[1764140472640,1.12617704,2947.3,2947.2,4.2853]
[1764140473743,0.4807,2947.3,2947.2,4.2853]
[1764140474540,1.12617704,2947.3,2947.2,4.2853]
[1764140476044,1.12617704,2947.3,2947.2,0.4493]
[1764140477647,0.4807,2947.1,2947.0,0.2711]
[1764140477848,1.12617704,2947.1,2947.0,0.2711]
[1764140478042,1.12617704,2947.1,2947.0,0.7204]
[1764140478745,1.12617704,2947.3,2947.2,0.4493]
[1764140480550,1.92369622,2947.3,2947.2,0.4493]
[1764140480850,1.12617704,2947.3,2947.2,0.4493]
[1764140481349,1.92392662,2947.3,2947.2,0.4493]
[1764140483449,0.4807,2947.1,2947.0,0.7204]
[1764140484346,0.4807,2946.9,2946.8,1.83516888]
[1764140484546,1.12617704,2946.9,2946.8,0.00508551]
[1764140485551,1.12617704,2946.9,2946.8,0.45438551]
[1764140486654,0.4807,2946.9,2946.8,0.00508551]
[1764140486949,0.4807,2946.9,2946.8,0.45438551]
[1764140488154,1.71062097,2947.3,2947.0,0.2874]
[1764140488450,0.79854266,2947.2,2947.1,0.4493]
[1764140491857,1.27924266,2947.2,2947.1,0.4493]
[1764140495259,1.27910497,2947.2,2947.1,0.4493]
[1764140498451,0.79840497,2947.2,2947.1,0.4493]
[1764140498853,0.79840497,2947.2,2947.0,0.2874]
[1764140498854,1.27130497,2947.2,2947.0,0.2874]
[1764140499063,0.4729,2947.1,2947.0,0.2874]
[1764140499352,1.27126552,2947.1,2947.0,0.2874]
[1764140499558,0.4729,2946.9,2946.8,2.31496888]
[1764140499752,0.4729,2946.9,2946.8,0.48488551]
[1764140504456,1.54490345,2947.3,2946.8,0.48488551]
[1764140504751,0.79857695,2947.2,2946.8,0.48488551]
[1764140504951,1.27147695,2947.1,2947.0,0.7602]
[1764140505165,1.27147695,2947.1,2947.0,0.2804]
[1764140505662,1.27147695,2947.1,2947.0,0.7602]
[1764140506364,0.79857695,2947.1,2947.0,0.7602]
[1764140508272,0.79857695,2947.1,2947.0,4.5962]
[1764140508471,0.91562863,2947.8,2947.7,0.4798]
[1764140508764,1.38852864,2948.0,2947.9,0.4798]
[1764140508968,2.18713437,2948.0,2947.9,0.4798]
[1764140509276,1.27150574,2948.0,2947.9,0.4798]
[1764140510071,0.79860574,2948.0,2947.9,0.4798]
[1764140510271,1e-08,2948.0,2947.6,1.82719669]
[1764140510875,1e-08,2948.0,2947.7,1.82719669]
[1764140511283,1e-08,2948.0,2947.6,1.82719669]
[1764140512184,1e-08,2948.0,2947.5,2.10759669]
[1764140512776,1e-08,2948.0,2947.6,1.82719669]
[1764140513280,1e-08,2948.0,2947.5,2.10759669]
[1764140513876,1e-08,2948.0,2947.6,1.82719669]
[1764140514178,1e-08,2948.0,2947.5,2.10759669]
[1764140514575,1e-08,2948.0,2947.6,3.836]
[1764140515579,1e-08,2948.0,2947.6,5.66319669]
[1764140517188,1e-08,2948.0,2947.7,0.62927482]
[1764140517481,1e-08,2948.0,2947.7,2.45647151]
[1764140519776,1.54490345,2949.4,2948.7,0.4798]
[1764140519979,0.79306483,2949.3,2948.7,0.4830118]
[1764140520182,0.79306483,2949.2,2948.7,0.4830118]
[1764140520384,1.26596483,2949.1,2949.0,0.7602]
[1764140520684,1.38430866,2949.6,2949.5,0.7602]
[1764140520685,0.4729,2949.6,2949.5,0.7602]
[1764140521077,0.4729,2949.1,2949.0,0.7602]
[1764140521470,0.62927482,2949.6,2949.0,0.7602]
[1764140521675,0.62927482,2949.6,2949.5,0.2804]
[1764140521883,1.10217482,2949.6,2949.5,0.7602]
[1764140522382,0.4729,2949.6,2949.5,0.7602]
[1764140523089,0.00508551,2949.8,2949.5,0.7602]
[1764140524687,0.4473,2949.6,2949.5,0.7602]
[1764140525285,1.07657482,2949.6,2949.0,0.2804]
[1764140525487,1.07657482,2949.6,2949.5,0.2957]
[1764140525686,1.07657482,2949.6,2949.5,0.7623]
[1764140528690,1.07657482,2949.6,2949.0,0.2804]
[1764140530589,0.4473,2949.6,2949.5,0.7623]
[1764140530890,0.4473,2949.6,2949.0,0.2804]
[1764140531887,0.4473,2949.6,2949.5,0.2957]
[1764140532187,0.4473,2949.6,2949.5,0.7623]
[1764140532393,0.4746,2949.1,2949.0,0.747]
[1764140534800,1.10387482,2949.4,2949.3,0.4666]
[1764140535598,0.4746,2949.1,2949.0,0.2804]
[1764140535798,0.62927482,2949.4,2948.8,0.47168551]
[1764140537995,0.47968551,2949.8,2949.7,0.4666]
[1764140538296,0.4746,2949.6,2949.5,0.7623]
[1764140538894,0.4746,2949.6,2949.0,0.2957]
[1764140539397,0.4746,2949.6,2949.5,0.2957]
[1764140540103,0.4746,2949.6,2949.5,0.7623]
[1764140541803,0.4746,2949.6,2949.5,0.2957]
[1764140542303,0.4746,2949.6,2949.5,0.7623]
[1764140542503,1.10387482,2949.6,2949.0,0.2957]
[1764140544299,1.26885836,2949.5,2949.4,0.4666]
[1764140544494,0.4746,2949.5,2949.4,0.4666]
[1764140544890,0.4746,2949.5,2949.0,0.2957]
[1764140545407,0.62927482,2949.6,2949.0,0.2957]
[1764140545408,0.4746,2949.1,2949.0,0.7623]
[1764140546697,1.11903171,2949.1,2949.0,0.7623]
[1764140548005,0.4746,2948.9,2948.8,0.00508551]
[1764140548203,1.91538051,2948.9,2948.8,0.00508551]
[1764140552313,2.82927651,2948.9,2948.8,0.00508551]
[1764140553212,2.1848448,2948.9,2948.8,0.00508551]
[1764140554108,2.1848448,2948.9,2948.8,0.47168551]
[1764140554303,1.2709488,2948.9,2948.8,0.47168551]
[1764140555714,0.7963488,2948.9,2948.8,0.47168551]
[1764140556114,1.2705488,2948.9,2948.8,0.47168551]
[1764140556316,1.91498051,2948.9,2948.8,0.47168551]
[1764140559723,1.91498051,2948.9,2948.8,0.00508551]
[1764140561624,1.91498051,2948.9,2948.8,0.49118551]
[1764140562231,1.2705488,2948.9,2948.8,0.49118551]
[1764140563231,0.7963488,2948.9,2948.8,0.49118551]
[1764140564137,1.2705488,2948.9,2948.8,0.00508551]
[1764140565532,1.26933751,2948.9,2948.8,0.00508551]
[1764140573434,1.26933751,2948.9,2948.8,0.49118551]
[1764140574329,0.79513751,2948.9,2948.8,0.49118551]
[1764140575129,0.4742,2949.2,2949.1,0.4861]
[1764140575329,1.27041413,2949.2,2949.1,0.4861]
[1764140576437,0.4742,2949.1,2949.0,0.7692]
[1764140576637,1.27041413,2949.1,2949.0,0.7692]
[1764140579738,0.4742,2948.9,2948.8,0.00508551]
[1764140580241,1.27041413,2948.9,2948.8,0.00508551]
[1764140580443,1.27041413,2948.9,2948.8,0.49118551]
[1764140580642,1.27041413,2948.9,2948.8,0.00508551]
[1764140584042,1.91484584,2948.9,2948.8,0.00508551]
[1764140584945,2.82780742,2948.9,2948.8,0.00508551]
[1764140585239,2.18337571,2948.9,2948.8,0.00508551]
[1764140588650,0.4568,2948.8,2948.7,0.0032118]
[1764140588839,0.4568,2947.9,2947.8,1.82719669]
[1764140589033,0.4568,2947.6,2947.5,2.12289669]
[1764140589240,0.4568,2947.6,2947.5,2.57489669]
[1764140589241,1.10123171,2947.6,2947.5,2.57489669]
[1764140589535,0.4568,2947.6,2947.5,0.7477]
[1764140589731,0.64443171,2947.9,2947.5,0.7477]
[1764140589732,0.00508551,2947.8,2947.5,0.75036235]
[1764140589940,0.46188551,2947.8,2947.7,0.452]
[1764140591547,0.4568,2947.6,2947.5,0.75036235]
[1764140592548,0.4568,2947.6,2947.5,0.29836235]
[1764140593945,1.10123171,2947.6,2947.5,0.00266235]
[1764140594743,0.1684,2947.5,2947.0,0.2831]
[1764140594949,1.10123171,2947.1,2947.0,0.7351]
[1764140595151,0.4568,2947.1,2947.0,0.7351]
[1764140595446,0.64443171,2947.3,2947.0,0.7351]
[1764140595643,0.4568,2947.1,2947.0,0.7351]
[1764140595842,0.4568,2947.1,2947.0,0.73759815]
[1764140601552,1.10123171,2947.1,2947.0,0.00249815]
[1764140602855,0.4568,2947.1,2947.0,0.28609815]
[1764140603067,0.4568,2947.1,2947.0,0.00249815]
[1764140603658,0.4568,2946.6,2946.5,0.291]
[1764140604657,0.46003929,2946.6,2946.5,0.29456568]
[1764140604855,0.46003929,2946.6,2945.7,1.74829814]
[1764140605060,0.46003929,2946.6,2945.5,0.2836]
[1764140605061,0.64443171,2945.8,2945.5,0.2836]
[1764140605264,0.00508551,2945.9,2945.8,0.452]
[1764140605863,0.00508551,2945.9,2945.8,0.45446838]
[1764140608468,0.46003929,2946.6,2946.5,0.7356]
[1764140609069,0.46003929,2946.6,2946.0,0.2836]
[1764140609262,0.46003929,2946.6,2945.8,0.00246838]
[1764140609263,0.4568,2945.9,2945.8,0.00246838]
[1764140609459,0.4568,2945.9,2945.8,0.45446838]
[1764140609854,0.4568,2945.7,2945.6,0.00508551]
[1764140610159,0.62923302,2945.7,2945.0,0.7356]
[1764140610967,0.4568,2945.7,2945.6,0.452]
[1764140611364,0.4568,2945.1,2945.0,0.28711267]
[1764140611562,0.4568,2945.1,2945.0,0.73911267]
[1764140612262,0.4568,2945.1,2943.6,1.99712669]